bitfinex/quotes_SOLUSD_20251117
["timestamp","ask_amount","ask_price","bid_price","bid_amount"]
[1763368930676,4.74998337,141.43,141.39,2.1554578]
[1763368930854,5.44998337,141.43,141.39,2.1554578]
[1763368931054,0.7,141.42,141.39,2.1554578]
[1763368931450,5.44998337,141.42,141.39,2.1554578]
[1763368931656,0.7,141.42,141.39,2.1554578]
[1763368931848,5.44998337,141.42,141.38,2.8554578]
[1763368932048,0.7,141.41,141.38,0.7]
[1763368932353,5.44998337,141.41,141.38,2.8554578]
[1763368933562,0.7,141.41,141.38,2.8554578]
[1763368933947,104.3,141.42,141.39,2.1554578]
[1763368934265,105.0,141.42,141.39,2.8554578]
[1763368934470,105.0,141.42,141.38,0.7]
[1763368934660,105.0,141.42,141.39,2.1554578]
[1763368936191,105.0,141.41,141.36,22.6512]
[1763368936473,105.0,141.41,141.38,2.1554578]
[1763368936871,105.0,141.41,141.39,2.1554578]
[1763368938086,105.0,141.41,141.38,0.7]
[1763368938659,104.3,141.41,141.39,2.1554578]
[1763368939079,104.3,141.41,141.4,0.69]
[1763368939460,104.3,141.41,141.39,2.8454578]
[1763368939661,104.3,141.41,141.39,0.69]
[1763368942287,104.3,141.41,141.38,2.1554578]
[1763368942483,105.0,141.41,141.38,2.1554578]
[1763368942659,105.0,141.41,141.38,2.8154578]
[1763368942864,104.3,141.41,141.38,2.8154578]
[1763368943064,104.3,141.41,141.39,0.66]
[1763368944690,104.3,141.41,141.38,2.8154578]
[1763368944898,104.3,141.41,141.38,2.1554578]
[1763368945073,104.3,141.41,141.39,0.66]
[1763368946590,104.3,141.41,141.38,2.8154578]
[1763368947294,105.0,141.41,141.38,2.8154578]
[1763368947501,104.3,141.41,141.38,2.8154578]
[1763368948292,105.0,141.4,141.36,22.6512]
[1763368948737,0.7,141.39,141.36,23.3112]
[1763368948884,0.7,141.39,141.36,25.4666578]
[1763368953392,0.7,141.39,141.37,2.1554578]
[1763368955112,0.7,141.39,141.36,25.4666578]
[1763368957718,0.7,141.39,141.37,2.1554578]
[1763368958094,0.7,141.39,141.36,24.8066578]
[1763368958323,0.7,141.39,141.36,25.5066578]
[1763368960116,0.7,141.39,141.37,2.1554578]
[1763368960496,104.3,141.4,141.37,2.8554578]
[1763368960694,104.3,141.4,141.39,2.1554578]
[1763368960890,104.3,141.4,141.39,2.8554578]
[1763368962510,104.3,141.4,141.37,28.33280218]
[1763368962704,104.3,141.4,141.39,2.1554578]
[1763368962909,104.3,141.4,141.39,3.36792006]
[1763368963102,104.3,141.4,141.39,4.06792006]
[1763368963308,104.3,141.4,141.39,3.36792006]
[1763368966700,0.66,141.42,141.39,4.06792006]
[1763368967918,0.66,141.42,141.39,3.36792006]
[1763368968629,0.66,141.42,141.4,3.36792006]
[1763368973405,0.66,141.42,141.36,30.42514146]
[1763368973618,0.66,141.42,141.4,3.36792006]
[1763368975136,0.66,141.42,141.41,3.36792006]
[1763368975725,0.66,141.42,141.4,3.36792006]
[1763368976321,0.66,141.42,141.37,7.07346132]
[1763368976524,0.66,141.42,141.4,3.36792006]
[1763368980844,0.66,141.42,141.41,3.36792006]
[1763368985136,0.66,141.42,141.38,0.7]
[1763368985431,0.66,141.42,141.36,30.41516192]
[1763368985621,104.3,141.41,141.36,44.60045663]
[1763368985817,104.3,141.41,141.36,23.3412]
[1763368986020,0.68,141.4,141.36,22.6512]
[1763368986221,0.68,141.4,141.37,3.36792006]
[1763368986439,0.68,141.4,141.36,22.6512]
[1763368986634,0.68,141.4,141.36,26.01912006]
[1763368986838,8.80317453,141.4,141.35,3.36792006]
[1763368987027,8.80317453,141.4,141.35,26.01912006]
[1763368987227,0.68,141.39,141.36,22.6512]
[1763368987826,0.68,141.39,141.36,26.01912006]
[1763368988324,0.68,141.39,141.36,22.6512]
[1763368988526,0.68,141.39,141.36,3.36792006]
[1763368988722,0.68,141.39,141.33,0.69]
[1763368989123,0.68,141.39,141.35,3.36792006]
[1763368989340,0.68,141.39,141.35,26.01912006]
[1763368990642,0.68,141.39,141.36,3.36792006]
[1763368991137,0.68,141.39,141.35,22.6512]
[1763368991317,0.68,141.39,141.36,3.36792006]
[1763368991516,107.66792006,141.38,141.32,17.0]
[1763368991743,0.68,141.37,141.34,3.36792006]
[1763368994134,0.68,141.37,141.32,22.6512]
[1763368994332,4.04792006,141.37,141.32,26.01912006]
[1763368994634,30.06605296,141.37,141.32,26.01912006]
[1763368994840,0.68,141.36,141.32,26.01912006]
[1763368995211,0.68,141.36,141.32,3.36792006]
[1763368995824,25.32074402,141.36,141.32,3.36792006]
[1763368996327,0.68,141.35,141.32,3.36792006]
[1763368996530,104.98,141.35,141.32,3.36792006]
[1763368997236,5.94720751,141.41,141.34,3.36792006]
[1763368997428,0.65,141.39,141.38,3.36792006]
[1763368999242,0.65,141.41,141.38,3.36792006]
[1763368999540,0.65,141.41,141.39,3.36792006]
[1763369000225,0.65,141.41,141.38,3.36792006]
[1763369003125,0.65,141.41,141.36,22.6512]
[1763369003453,0.65,141.41,141.38,3.36792006]
[1763369003654,104.3,141.4,141.38,3.36792006]
[1763369003862,104.3,141.4,141.36,23.3212]
[1763369004037,104.95,141.4,141.38,3.36792006]
[1763369008451,104.95,141.4,141.37,3.36792006]
[1763369009455,104.3,141.39,141.37,3.36792006]
[1763369010656,105.0,141.39,141.37,3.36792006]
[1763369012653,105.0,141.39,141.38,3.36792006]
[1763369012846,105.0,141.39,141.36,22.6512]
[1763369013045,105.0,141.39,141.37,3.36792006]
[1763369020259,104.3,141.39,141.37,3.36792006]
[1763369020652,0.7,141.38,141.37,3.36792006]
[1763369022764,105.0,141.39,141.37,2.15632755]
[1763369023663,104.3,141.39,141.37,2.15632755]
[1763369023849,0.7,141.38,141.37,2.15632755]
[1763369024463,104.3,141.39,141.37,2.84632755]
[1763369024654,105.0,141.39,141.38,2.15632755]
[1763369026064,104.3,141.39,141.38,2.15632755]
[1763369027457,105.0,141.39,141.38,2.15632755]
[1763369030882,104.3,141.39,141.38,2.15632755]
[1763369031250,105.0,141.39,141.38,2.15632755]
[1763369034576,105.0,141.39,141.36,23.3412]
[1763369034777,105.0,141.39,141.38,2.15632755]
[1763369037987,105.0,141.39,141.36,22.6512]
[1763369038160,105.0,141.39,141.38,2.15632755]
[1763369043074,105.0,141.39,141.34,22.6512]
[1763369043264,105.01,141.39,141.34,22.6512]
[1763369043470,104.3,141.39,141.35,0.67]
[1763369043788,0.71,141.38,141.35,0.67]
[1763369050264,0.71,141.38,141.36,2.15632755]
[1763369050683,0.71,141.38,141.35,2.15632755]
[1763369052191,0.71,141.38,141.36,2.15632755]
[1763369058699,0.71,141.38,141.35,2.15632755]
[1763369059597,105.0,141.39,141.36,2.15632755]
[1763369059800,0.7,141.38,141.36,2.15632755]
[1763369061670,0.7,141.38,141.31,7.74661338]
[1763369061896,0.7,141.38,141.33,2.15632755]
[1763369062583,0.7,141.38,141.32,24.80752755]
[1763369062791,2.85632755,141.38,141.32,24.80752755]
[1763369063178,0.7,141.37,141.32,24.80752755]
[1763369064678,0.7,141.37,141.33,2.15632755]
[1763369066510,0.7,141.37,141.32,23.3212]
[1763369066718,0.7,141.37,141.32,25.47752755]
[1763369066907,0.7,141.37,141.33,2.15632755]
[1763369070115,104.3,141.36,141.33,22.6512]
[1763369070405,104.3,141.36,141.32,2.15632755]
[1763369070707,25.49798814,141.45,141.29,2.15632755]
[1763369070708,107.12632755,141.35,141.29,2.15632755]
[1763369070906,107.12632755,141.35,141.27,0.2]
[1763369070907,2.15632755,141.33,141.27,0.2]
[1763369071107,2.15632755,141.31,141.27,0.2]
[1763369071607,0.67,141.3,141.27,0.2]
[1763369072794,21.27885945,141.32,141.28,2.15632755]
[1763369073109,0.67,141.31,141.28,2.15632755]
[1763369073889,0.67,141.31,141.27,0.2]
[1763369074085,0.67,141.31,141.27,2.35632755]
[1763369074922,2.82632755,141.31,141.27,0.2]
[1763369075304,0.67,141.3,141.27,0.2]
[1763369075499,0.67,141.3,141.27,2.35632755]
[1763369075913,0.67,141.32,141.29,2.15632755]
[1763369076098,0.67,141.32,141.28,23.3512]
[1763369076099,0.67,141.32,141.3,2.15632755]
[1763369077612,0.67,141.32,141.28,2.15632755]
[1763369077797,2.15632755,141.3,141.27,0.2]
[1763369077999,0.67,141.32,141.29,2.15632755]
[1763369078223,0.67,141.32,141.3,2.15632755]
[1763369078709,0.67,141.32,141.27,2.35632755]
[1763369078710,2.82632755,141.32,141.27,2.35632755]
[1763369079106,0.67,141.31,141.27,2.35632755]
[1763369080535,0.67,141.31,141.28,2.15632755]
[1763369080733,0.67,141.31,141.27,0.2]
[1763369081227,0.67,141.31,141.27,2.35632755]
[1763369081404,0.67,141.31,141.27,0.2]
[1763369082225,0.67,141.31,141.27,2.35632755]
[1763369082423,0.67,141.31,141.27,0.2]
[1763369082620,0.67,141.31,141.27,2.35632755]
[1763369082928,0.67,141.31,141.27,3.57413384]
[1763369083109,104.3,141.3,141.27,3.57413384]
[1763369083513,0.67,141.29,141.27,0.2]
[1763369086125,0.67,141.29,141.27,3.57413384]
[1763369088426,104.97,141.3,141.28,3.37413384]
[1763369088605,0.67,141.29,141.27,0.2]
[1763369089104,0.67,141.29,141.28,3.37413384]
[1763369090310,0.67,141.29,141.27,0.2]
[1763369090511,0.67,141.29,141.27,3.57413384]
[1763369090911,0.67,141.29,141.28,3.37413384]
[1763369091637,0.67,141.29,141.27,0.2]
[1763369091821,0.67,141.29,141.28,3.37413384]
[1763369093416,0.67,141.29,141.27,0.2]
[1763369093617,0.67,141.29,141.27,3.57413384]
[1763369093814,0.67,141.29,141.27,0.2]
[1763369094221,0.67,141.29,141.27,3.57413384]
[1763369094422,0.67,141.29,141.27,0.2]
[1763369096717,104.3,141.28,141.27,0.2]
[1763369096925,114.08882769,141.28,141.27,0.2]
[1763369097142,118.13296153,141.28,141.27,0.2]
[1763369097623,13.83296153,141.28,141.27,0.2]
[1763369097830,16.67114934,141.28,141.27,0.2]
[1763369099915,13.2970155,141.28,141.27,0.2]
[1763369100134,16.67114934,141.28,141.27,0.2]
[1763369101432,0.67,141.28,141.27,0.2]
[1763369103245,0.66,141.29,141.27,3.57413384]
[1763369103429,0.66,141.29,141.27,0.2]
[1763369103940,9.78882769,141.28,141.25,0.2]
[1763369104134,13.16296153,141.28,141.25,0.2]
[1763369104339,0.66,141.27,141.25,0.2]
[1763369104537,104.96,141.27,141.25,0.2]
[1763369104937,108.33413384,141.26,141.24,0.2]
[1763369105254,0.66,141.28,141.24,4.24413384]
[1763369105433,2.83838921,141.27,141.26,3.37413384]
[1763369105633,3.37413384,141.32,141.26,3.37413384]
[1763369105950,6.74826768,141.32,141.27,4.04413384]
[1763369106157,0.66,141.31,141.27,0.67]
[1763369106341,4.03413384,141.31,141.27,0.67]
[1763369106732,0.66,141.3,141.27,0.67]
[1763369108158,0.66,141.35,141.29,3.37413384]
[1763369108346,0.66,141.38,141.34,3.37413384]
[1763369108658,0.66,141.38,141.35,3.37413384]
[1763369109860,0.66,141.38,141.33,0.67]
[1763369110061,0.66,141.38,141.35,3.37413384]
[1763369110246,0.66,141.38,141.34,3.37413384]
[1763369111142,4.03413384,141.38,141.33,4.04413384]
[1763369111356,9.78882769,141.37,141.31,0.67]
[1763369111551,3.37413384,141.36,141.31,4.04413384]
[1763369111862,4.03413384,141.36,141.31,4.04413384]
[1763369112046,0.66,141.35,141.31,4.04413384]
[1763369112247,0.66,141.35,141.31,0.67]
[1763369113461,0.66,141.35,141.31,4.04413384]
[1763369114851,0.66,141.35,141.31,0.67]
[1763369115359,4.03413384,141.35,141.3,0.67]
[1763369115554,3.37413384,141.34,141.3,0.67]
[1763369115760,3.37413384,141.33,141.28,4.04413384]
[1763369115939,4.03413384,141.33,141.28,0.67]
[1763369116137,4.03413384,141.32,141.28,23.3212]
[1763369116340,4.03413384,141.32,141.28,22.6512]
[1763369116654,4.03413384,141.31,141.26,4.04413384]
[1763369117034,104.96,141.3,141.26,3.37413384]
[1763369117238,104.96,141.3,141.26,26.02533384]
[1763369117438,104.96,141.3,141.27,0.68]
[1763369117663,104.96,141.3,141.26,3.37413384]
[1763369117856,104.96,141.3,141.27,0.68]
[1763369118057,104.3,141.3,141.28,3.37413384]
[1763369118362,104.3,141.3,141.28,22.6512]
[1763369118560,104.96,141.3,141.26,4.05413384]
[1763369118882,0.66,141.29,141.26,22.6512]
[1763369119039,0.66,141.29,141.26,26.02533384]
[1763369119766,104.3,141.3,141.27,0.68]
[1763369120150,104.96,141.3,141.27,0.68]
[1763369120554,104.3,141.3,141.27,0.68]
[1763369120781,104.3,141.3,141.28,3.37413384]
[1763369120945,0.66,141.31,141.28,26.02533384]
[1763369121663,0.66,141.31,141.28,22.6512]
[1763369122739,0.66,141.31,141.28,23.3312]
[1763369122939,0.66,141.31,141.28,22.6512]
[1763369124762,108.33413384,141.33,141.29,0.68]
[1763369125066,104.3,141.32,141.29,26.70533384]
[1763369125569,104.3,141.32,141.3,0.68]
[1763369125749,104.3,141.32,141.29,26.02533384]
[1763369125750,104.3,141.32,141.29,22.6512]
[1763369125949,104.96,141.32,141.29,23.3312]
[1763369126165,104.96,141.32,141.29,22.6512]
[1763369126364,0.66,141.31,141.29,22.6512]
[1763369126689,0.66,141.31,141.25,7.07960181]
[1763369126690,0.66,141.31,141.28,22.6512]
[1763369127386,104.3,141.32,141.28,22.6512]
[1763369127550,104.96,141.32,141.29,4.05413384]
[1763369127751,104.3,141.32,141.29,26.70533384]
[1763369128280,104.96,141.32,141.29,23.3312]
[1763369128774,104.96,141.32,141.29,26.70533384]
[1763369128959,104.3,141.32,141.31,22.6512]
[1763369129162,0.66,141.35,141.31,26.02533384]
[1763369129485,0.66,141.35,141.32,23.3312]
[1763369129851,0.66,141.35,141.32,22.6512]
[1763369130052,4.03413384,141.35,141.31,22.6512]
[1763369130262,3.37413384,141.34,141.31,22.6512]
[1763369130463,4.03413384,141.34,141.31,22.6512]
[1763369130695,0.68,141.33,141.31,22.6512]
[1763369131075,0.68,141.33,141.28,0.65]
[1763369131263,108.35413384,141.33,141.28,23.3012]
[1763369131458,107.67413384,141.32,141.28,22.6512]
[1763369131687,104.3,141.32,141.28,26.02533384]
[1763369131895,104.3,141.32,141.29,4.02413384]
[1763369132059,104.3,141.32,141.29,0.65]
[1763369132258,104.98,141.32,141.29,4.02413384]
[1763369132797,104.3,141.32,141.3,3.37413384]
[1763369132962,104.3,141.32,141.29,26.67533384]
[1763369133159,104.3,141.32,141.29,23.3012]
[1763369133656,104.3,141.32,141.29,26.67533384]
[1763369133861,104.98,141.32,141.29,22.6512]
[1763369134068,104.98,141.32,141.28,22.6512]
[1763369134272,104.3,141.31,141.28,26.02533384]
[1763369134483,104.3,141.31,141.28,26.67533384]
[1763369136401,104.98,141.31,141.28,26.67533384]
[1763369136591,104.98,141.31,141.28,26.02533384]
[1763369138486,104.3,141.36,141.29,3.37413384]
[1763369138676,0.68,141.33,141.3,22.6512]
[1763369142780,0.68,141.33,141.29,22.6512]
[1763369142986,104.3,141.32,141.29,22.6512]
[1763369143203,104.3,141.31,141.28,22.6512]
[1763369143403,104.3,141.3,141.28,22.6512]
[1763369143603,0.68,141.29,141.28,22.6512]
[1763369143805,104.98,141.3,141.26,0.65]
[1763369144405,0.68,141.29,141.25,22.6512]
[1763369144705,104.3,141.3,141.28,3.37413384]
[1763369144902,104.3,141.3,141.28,2.80920443]
[1763369146105,104.3,141.3,141.28,2.15920443]
[1763369146275,104.98,141.3,141.27,2.15920443]
[1763369146788,104.98,141.3,141.27,2.80920443]
[1763369147799,104.3,141.3,141.28,2.80920443]
[1763369148180,13.00116351,141.39,141.3,22.6512]
[1763369148181,104.98,141.35,141.3,22.6512]
[1763369148380,104.98,141.35,141.32,2.15920443]
[1763369148782,0.68,141.34,141.32,2.15920443]
[1763369149102,0.68,141.34,141.31,2.15920443]
[1763369149695,104.3,141.35,141.31,2.15920443]
[1763369149903,104.98,141.35,141.32,2.80920443]
[1763369151299,104.98,141.35,141.31,22.6512]
[1763369151300,0.68,141.34,141.31,22.6512]
[1763369151872,106.45920443,141.33,141.3,22.6512]
[1763369152077,104.3,141.32,141.3,22.6512]
[1763369152272,104.3,141.31,141.28,22.6512]
[1763369152485,104.98,141.31,141.28,24.81040443]
[1763369152915,0.68,141.3,141.28,22.6512]
[1763369153297,104.3,141.31,141.28,24.81040443]
[1763369153500,104.3,141.31,141.29,2.15920443]
[1763369153691,104.3,141.31,141.3,22.6512]
[1763369154678,104.3,141.31,141.3,2.80920443]
[1763369154878,104.3,141.31,141.3,2.15920443]
[1763369156096,0.68,141.33,141.3,2.80920443]
[1763369156303,0.68,141.35,141.3,2.15920443]
[1763369156609,0.68,141.34,141.3,0.65]
[1763369156807,0.68,141.34,141.28,30.37930259]
[1763369157012,2.83920443,141.34,141.28,0.65]
[1763369157407,104.98,141.33,141.27,22.6512]
[1763369157593,104.3,141.32,141.28,2.15920443]
[1763369157904,104.98,141.32,141.28,2.15920443]
[1763369158104,0.68,141.31,141.28,2.15920443]
[1763369159112,104.3,141.32,141.29,2.15920443]
[1763369159415,0.68,141.31,141.29,2.15920443]
[1763369160394,0.68,141.31,141.28,22.6512]
[1763369160596,0.68,141.31,141.29,2.15920443]
[1763369162293,105.0,141.32,141.29,2.15920443]
[1763369162704,104.3,141.31,141.29,2.15920443]
[1763369162901,105.0,141.31,141.29,2.15920443]
[1763369163214,105.0,141.31,141.28,23.3512]
[1763369163602,105.0,141.31,141.29,2.15920443]
[1763369163802,105.0,141.3,141.28,22.6512]
[1763369163992,105.0,141.3,141.28,24.81040443]
[1763369164416,0.7,141.29,141.27,2.15920443]
[1763369165086,104.3,141.3,141.28,2.15920443]
[1763369165319,104.3,141.3,141.29,2.15920443]
[1763369165505,104.3,141.3,141.29,24.81040443]
[1763369166300,105.0,141.3,141.29,24.81040443]
[1763369166924,104.3,141.3,141.29,24.81040443]
[1763369167704,105.0,141.3,141.27,22.6512]
[1763369167906,0.7,141.29,141.28,2.15920443]
[1763369168296,0.7,141.29,141.28,24.81040443]
[1763369168494,0.7,141.29,141.28,22.6512]
[1763369169901,104.3,141.3,141.29,22.6512]
[1763369170115,105.0,141.3,141.28,24.81040443]
[1763369170420,0.7,141.29,141.28,22.6512]
[1763369170805,0.7,141.29,141.26,22.6512]
[1763369170993,0.7,141.29,141.25,2.15920443]
[1763369171718,0.7,141.29,141.26,22.6512]
[1763369172608,0.7,141.29,141.25,2.15920443]
[1763369172919,0.7,141.29,141.27,22.6512]
[1763369173619,0.7,141.29,141.26,2.15920443]
[1763369175628,0.7,141.29,141.26,24.81040443]
[1763369176203,0.7,141.29,141.26,2.15920443]
[1763369176413,0.7,141.29,141.25,2.15920443]
[1763369176613,104.3,141.28,141.24,0.2]
[1763369176829,0.7,141.29,141.24,0.2]
[1763369177031,0.7,141.28,141.24,0.9]
[1763369177213,0.7,141.28,141.26,22.6512]
[1763369177532,0.71,141.29,141.26,2.15920443]
[1763369179937,0.71,141.29,141.26,24.81040443]
[1763369180136,0.71,141.29,141.26,22.6512]
[1763369180501,0.71,141.29,141.25,2.15920443]
[1763369180721,0.71,141.29,141.26,0.66]
[1763369181828,0.71,141.3,141.28,22.6512]
[1763369182035,104.3,141.29,141.28,22.6512]
[1763369182734,105.01,141.29,141.27,22.6512]
[1763369183116,0.71,141.28,141.27,22.6512]
[1763369183316,0.71,141.28,141.24,0.86]
[1763369183626,0.71,141.28,141.26,22.6512]
[1763369183840,104.3,141.27,141.24,0.2]
[1763369184207,0.71,141.26,141.24,0.2]
[1763369185943,2.86920443,141.26,141.24,0.2]
[1763369186436,0.71,141.25,141.24,0.2]
[1763369186611,0.71,141.26,141.24,0.2]
[1763369187242,104.3,141.27,141.24,3.01920443]
[1763369187427,104.3,141.27,141.26,22.6512]
[1763369187731,104.3,141.27,141.26,24.81040443]
[1763369187933,0.71,141.29,141.27,22.6512]
[1763369188119,0.71,141.31,141.27,23.3112]
[1763369188319,0.71,141.31,141.27,22.6512]
[1763369188834,0.71,141.31,141.26,24.81040443]
[1763369189034,9.78882769,141.3,141.26,22.6512]
[1763369189240,11.94803212,141.3,141.27,22.6512]
[1763369189541,0.71,141.29,141.27,22.6512]
[1763369189916,0.71,141.29,141.24,0.2]
[1763369190115,0.71,141.29,141.24,25.01040443]
[1763369190340,9.78882769,141.28,141.24,22.8512]
[1763369190635,0.71,141.29,141.24,25.01040443]
[1763369190939,105.0,141.28,141.25,24.81040443]
[1763369191318,0.7,141.27,141.25,24.81040443]
[1763369192426,0.7,141.27,141.25,22.6512]
[1763369194136,105.0,141.28,141.25,24.81040443]
[1763369194923,105.0,141.28,141.25,25.52040443]
[1763369195125,104.3,141.28,141.25,25.52040443]
[1763369195646,105.0,141.28,141.25,22.6512]
[1763369195840,105.0,141.28,141.25,24.81040443]
[1763369196148,0.7,141.27,141.24,22.8512]
[1763369197432,0.7,141.27,141.24,25.01040443]
[1763369197734,0.7,141.27,141.24,22.8512]
[1763369198643,104.3,141.28,141.24,3.06920443]
[1763369198821,104.3,141.28,141.25,2.86920443]
[1763369199845,0.7,141.27,141.25,2.15920443]
[1763369200043,104.3,141.28,141.26,2.15920443]
[1763369200230,105.0,141.28,141.26,2.15920443]
[1763369200743,104.3,141.28,141.26,2.15920443]
[1763369200935,0.7,141.27,141.25,2.15920443]
[1763369201627,104.3,141.28,141.24,3.06920443]
[1763369201939,105.0,141.28,141.25,2.86920443]
[1763369204162,105.0,141.28,141.25,2.15920443]
[1763369204456,105.0,141.28,141.24,0.2]
[1763369204662,105.0,141.28,141.25,2.86920443]
[1763369205347,0.7,141.27,141.24,0.2]
[1763369205734,104.3,141.26,141.25,22.6512]
[1763369206246,105.0,141.26,141.25,22.6512]
[1763369206453,104.3,141.25,141.24,0.2]
[1763369206651,105.0,141.25,141.24,0.2]
[1763369206847,104.3,141.25,141.24,3.57577473]
[1763369207051,104.3,141.25,141.24,4.28577473]
[1763369207348,104.3,141.25,141.24,3.57577473]
[1763369208447,104.3,141.25,141.24,26.22697473]
[1763369211545,104.3,141.25,141.24,22.8512]
[1763369212027,104.3,141.25,141.24,26.22697473]
[1763369212345,104.3,141.25,141.24,22.8512]
[1763369212546,104.3,141.25,141.24,26.22697473]
[1763369215742,104.3,141.25,141.24,22.8512]
[1763369216056,104.3,141.25,141.24,26.22697473]
[1763369219045,104.3,141.25,141.24,26.93697473]
[1763369220535,104.3,141.25,141.24,4.28577473]
[1763369220731,104.3,141.28,141.27,22.6512]
[1763369221040,104.3,141.28,141.27,26.02697473]
[1763369221238,104.3,141.28,141.27,26.72697473]
[1763369222239,104.3,141.28,141.27,22.6512]
[1763369222562,105.0,141.28,141.27,22.6512]
[1763369222750,105.0,141.28,141.26,22.6512]
[1763369222933,0.7,141.27,141.26,22.6512]
[1763369223133,0.7,141.27,141.25,22.6512]
[1763369224252,0.7,141.27,141.24,0.2]
[1763369226266,0.7,141.27,141.24,3.57577473]
[1763369229068,4.07577473,141.27,141.25,22.6512]
[1763369229464,0.7,141.26,141.25,22.6512]
[1763369229771,105.0,141.26,141.24,0.2]
[1763369230368,0.7,141.25,141.24,0.2]
[1763369231071,0.7,141.25,141.24,22.8512]
[1763369231244,0.7,141.25,141.24,0.2]
[1763369234567,0.7,141.25,141.24,22.8512]
[1763369235694,0.7,141.26,141.24,22.8512]
[1763369235973,0.7,141.26,141.24,0.2]
[1763369236681,0.7,141.26,141.24,22.8512]
[1763369237899,0.7,141.26,141.25,22.6512]
[1763369238550,0.7,141.26,141.24,0.2]
[1763369238756,0.7,141.26,141.25,22.6512]
[1763369239150,13.86460242,141.26,141.24,0.2]
[1763369239471,3.37577473,141.25,141.24,0.2]
[1763369239666,4.07577473,141.25,141.24,0.2]
[1763369241684,0.7,141.25,141.24,0.2]
[1763369242176,4.07577473,141.25,141.24,0.2]
[1763369242582,0.7,141.25,141.24,0.2]
[1763369244593,5.93822956,141.39,141.34,9.78882769]
[1763369244757,0.1,141.42,141.38,22.6512]
[1763369245089,0.1,141.42,141.41,3.37577473]
[1763369245254,0.1,141.44,141.43,22.6512]
[1763369245460,0.1,141.47,141.43,31.3043334]
[1763369245783,0.1,141.47,141.46,26.02697473]
[1763369245961,0.1,141.47,141.46,31.3043334]
[1763369247977,0.7,141.51,141.46,31.3043334]
[1763369248287,0.7,141.51,141.49,3.37577473]
[1763369248463,0.7,141.51,141.5,5.27735867]
[1763369249868,0.7,141.51,141.5,8.6531334]
[1763369250074,9.78882769,141.56,141.5,8.6531334]
[1763369250263,9.78882769,141.57,141.51,8.6531334]
[1763369250467,9.78882769,141.57,141.52,5.27735867]
[1763369250776,9.78882769,141.57,141.53,5.27735867]
[1763369250968,9.78882769,141.57,141.54,5.27735867]
[1763369251293,9.78882769,141.57,141.51,3.37577473]
[1763369251588,9.78882769,141.57,141.52,5.21365428]
[1763369251797,9.78882769,141.57,141.53,5.21365428]
[1763369251974,13.16460242,141.57,141.54,5.21365428]
[1763369252175,0.69,141.56,141.55,5.21365428]
[1763369252903,36.50580242,141.56,141.55,5.21365428]
[1763369254902,13.85460242,141.56,141.55,5.21365428]
[1763369255089,10.47882769,141.56,141.55,5.21365428]
[1763369255464,13.85460242,141.56,141.5,3.37577473]
[1763369255666,9.78882769,141.54,141.51,5.19225625]
[1763369255965,0.69,141.53,141.5,3.37577473]
[1763369256164,0.69,141.53,141.51,5.19226163]
[1763369256467,0.69,141.53,141.5,3.37577473]
[1763369256671,0.69,141.53,141.51,5.18823732]
[1763369256883,0.69,141.53,141.5,3.37577473]
[1763369257088,0.69,141.53,141.51,5.18823799]